[Event "Titled Tuesday Blitz September 21 2021"]
[White "Deac, Bogdan-Daniel"]
[Black "Rodchenkov, Vitaly"]
[WhiteFideId "1226380"]
[BlackFideId "4152964"]
[WhiteElo "2605"]
[BlackElo "2337"]
[Result "1-0"]
[Round "01"]
[TimeControl "180+1"]
[Date "2021.09.21"]
[WhiteClock "0:00:02"]
[BlackClock "0:00:04"]

1. b3 {[%clk 0:03:00]}  c5 {[%clk 0:02:58]} 2. Bb2 {[%clk 0:03:00]}  Nf6 {[%clk 0:02:58]} 3. c4 {[%clk 0:02:54]}  Nc6 {[%clk 0:02:55]} 4. Nf3 {[%clk 0:02:51]}  d5 {[%clk 0:02:54]} 5. cxd5 {[%clk 0:02:51]}  Nxd5 {[%clk 0:02:53]} 6. g3 {[%clk 0:02:51]}  f6 {[%clk 0:02:52]} 7. Bg2 {[%clk 0:02:46]}  e5 {[%clk 0:02:52]} 8. O-O {[%clk 0:02:46]}  Be7 {[%clk 0:02:52]} 9. d3 {[%clk 0:02:32]}  O-O {[%clk 0:02:51]} 10. Nbd2 {[%clk 0:02:33]}  Be6 {[%clk 0:02:51]} 11. Rc1 {[%clk 0:02:31]}  Rc8 {[%clk 0:02:50]} 12. a3 {[%clk 0:02:31]}  Qd7 {[%clk 0:02:49]} 13. e3 {[%clk 0:02:27]}  Rfd8 {[%clk 0:02:48]} 14. Qc2 {[%clk 0:02:25]}  b6 {[%clk 0:02:46]} 15. Rfd1 {[%clk 0:02:21]}  Bh3 {[%clk 0:02:44]} 16. Qc4 {[%clk 0:02:14]}  Bxg2 {[%clk 0:02:42]} 17. Kxg2 {[%clk 0:02:14]}  Kh8 {[%clk 0:02:42]} 18. h4 {[%clk 0:02:06]}  Na5 {[%clk 0:02:38]} 19. Qe4 {[%clk 0:01:59]}  Bf8 {[%clk 0:02:28]} 20. g4 {[%clk 0:01:45]}  Qf7 {[%clk 0:02:27]} 21. h5 {[%clk 0:01:38]}  Nc7 {[%clk 0:02:24]} 22. h6 {[%clk 0:01:24]}  Ne6 {[%clk 0:02:16]} 23. hxg7+ {[%clk 0:01:13]}  Bxg7 {[%clk 0:02:16]} 24. b4 {[%clk 0:01:13]}  Nc6 {[%clk 0:02:13]} 25. Rh1 {[%clk 0:01:12]}  h6 {[%clk 0:02:10]} 26. b5 {[%clk 0:01:06]}  Ne7 {[%clk 0:02:07]} 27. Nc4 {[%clk 0:00:53]}  Kg8 {[%clk 0:02:01]} 28. a4 {[%clk 0:00:42]}  Ng6 {[%clk 0:01:56]} 29. Kg3 {[%clk 0:00:38]}  Ng5 {[%clk 0:01:55]} 30. Nxg5 {[%clk 0:00:35]}  fxg5 {[%clk 0:01:55]} 31. a5 {[%clk 0:00:22]}  bxa5 {[%clk 0:01:43]} 32. Ra1 {[%clk 0:00:20]}  Rf8 {[%clk 0:01:25]} 33. f3 {[%clk 0:00:18]}  Nh4 {[%clk 0:01:24]} 34. Rhf1 {[%clk 0:00:15]}  Qd7 {[%clk 0:01:02]} 35. Rxa5 {[%clk 0:00:13]}  Rce8 {[%clk 0:01:02]} 36. Ra6 {[%clk 0:00:10]}  Re6 {[%clk 0:00:59]} 37. Rxe6 {[%clk 0:00:07]}  Qxe6 {[%clk 0:00:59]} 38. Bxe5 {[%clk 0:00:08]}  Bxe5+ {[%clk 0:00:52]} 39. Qxe5 {[%clk 0:00:08]}  Qd7 {[%clk 0:00:47]} 40. Qd6 {[%clk 0:00:03]}  Qg7 {[%clk 0:00:32]} 41. Qd5+ {[%clk 0:00:02]}  Kh8 {[%clk 0:00:31]} 42. f4 {[%clk 0:00:03]}  Ng6 {[%clk 0:00:17]} 43. f5 {[%clk 0:00:03]}  Nh4 {[%clk 0:00:16]} 44. Qe5 {[%clk 0:00:03]}  Rf6 {[%clk 0:00:14]} 45. e4 {[%clk 0:00:02]}  Kh7 {[%clk 0:00:14]} 46. Qb8 {[%clk 0:00:02]}  Qd7 {[%clk 0:00:11]} 47. Ne5 {[%clk 0:00:02]}  Qe7 {[%clk 0:00:08]} 48. Ra1 {[%clk 0:00:01]}  a6 {[%clk 0:00:05]} 49. Rxa6 {[%clk 0:00:02]}  Rxa6 {[%clk 0:00:05]} 50. bxa6 {[%clk 0:00:02]}  Qd6 {[%clk 0:00:04]} 51. Qxd6 {[%clk 0:00:02]} 1-0


[Site "https://www.chess.com"]

[Event "Titled Tuesday Blitz September 21 2021"]
[White "Estrada Nieto, Julian"]
[Black "Zubov, Alexander"]
[WhiteFideId "5101018"]
[BlackFideId "14109409"]
[WhiteElo "2270"]
[BlackElo "2740"]
[Result "0-1"]
[Round "01"]
[TimeControl "180+1"]
[Date "2021.09.21"]
[WhiteClock "0:00:04"]
[BlackClock "0:01:11"]

1. e4 {[%clk 0:02:53]}  c5 {[%clk 0:02:59]} 2. Nf3 {[%clk 0:02:50]}  d6 {[%clk 0:02:59]} 3. Bb5+ {[%clk 0:02:47]}  Nc6 {[%clk 0:02:58]} 4. O-O {[%clk 0:02:42]}  Bd7 {[%clk 0:02:57]} 5. Re1 {[%clk 0:02:42]}  Nf6 {[%clk 0:02:56]} 6. c3 {[%clk 0:02:41]}  a6 {[%clk 0:02:57]} 7. Bf1 {[%clk 0:02:41]}  Bg4 {[%clk 0:02:57]} 8. d4 {[%clk 0:02:40]}  cxd4 {[%clk 0:02:56]} 9. cxd4 {[%clk 0:02:40]}  e5 {[%clk 0:02:54]} 10. d5 {[%clk 0:02:40]}  Nd4 {[%clk 0:02:52]} 11. Be3 {[%clk 0:02:40]}  Nxf3+ {[%clk 0:02:46]} 12. gxf3 {[%clk 0:02:40]}  Bd7 {[%clk 0:02:46]} 13. Nc3 {[%clk 0:02:30]}  Be7 {[%clk 0:02:44]} 14. a4 {[%clk 0:02:28]}  O-O {[%clk 0:02:41]} 15. Qb3 {[%clk 0:02:26]}  Nh5 {[%clk 0:02:36]} 16. Qxb7 {[%clk 0:02:06]}  Bg5 {[%clk 0:02:35]} 17. Qb3 {[%clk 0:01:36]}  f5 {[%clk 0:02:04]} 18. exf5 {[%clk 0:00:59]}  Bf4 {[%clk 0:01:57]} 19. Ne4 {[%clk 0:00:48]}  Bxf5 {[%clk 0:01:53]} 20. Bg2 {[%clk 0:00:35]}  Bxe4 {[%clk 0:01:42]} 21. fxe4 {[%clk 0:00:34]}  Qh4 {[%clk 0:01:41]} 22. h3 {[%clk 0:00:22]}  Rab8 {[%clk 0:01:31]} 23. Bb6 {[%clk 0:00:15]}  Bd2 {[%clk 0:01:13]} 24. Rf1 {[%clk 0:00:13]}  Ba5 {[%clk 0:01:12]} 25. Qd3 {[%clk 0:00:04]}  Bxb6 {[%clk 0:01:11]} 0-1


[Site "https://www.chess.com"]

[Event "Titled Tuesday Blitz September 21 2021"]
[White "Federzoni, Enzo"]
[Black "Vokhidov, Shamsiddin"]
[WhiteFideId "2173301"]
[BlackFideId "14204223"]
[WhiteElo "1956"]
[BlackElo "2616"]
[Result "0-1"]
[Round "01"]
[TimeControl "180+1"]
[Date "2021.09.21"]
[WhiteClock "0:00:26"]
[BlackClock "0:01:14"]

1. e4 {[%clk 0:02:59]}  c5 {[%clk 0:02:59]} 2. Nf3 {[%clk 0:02:58]}  e6 {[%clk 0:03:00]} 3. d4 {[%clk 0:02:58]}  cxd4 {[%clk 0:03:01]} 4. Nxd4 {[%clk 0:02:59]}  Nc6 {[%clk 0:03:01]} 5. Nc3 {[%clk 0:03:00]}  Qc7 {[%clk 0:03:01]} 6. Be3 {[%clk 0:02:59]}  a6 {[%clk 0:03:00]} 7. Qf3 {[%clk 0:02:59]}  Ne5 {[%clk 0:02:59]} 8. Qg3 {[%clk 0:02:49]}  h5 {[%clk 0:02:59]} 9. Nf5 {[%clk 0:02:46]}  f6 {[%clk 0:02:57]} 10. f4 {[%clk 0:02:28]}  Ng4 {[%clk 0:02:42]} 11. Nd4 {[%clk 0:02:17]}  N8h6 {[%clk 0:02:15]} 12. O-O-O {[%clk 0:02:14]}  Nxe3 {[%clk 0:02:12]} 13. Qxe3 {[%clk 0:02:15]}  Bc5 {[%clk 0:02:11]} 14. Qg3 {[%clk 0:02:04]}  g5 {[%clk 0:02:05]} 15. fxg5 {[%clk 0:01:58]}  Qxg3 {[%clk 0:02:06]} 16. hxg3 {[%clk 0:01:58]}  Ng4 {[%clk 0:02:06]} 17. Be2 {[%clk 0:01:52]}  Nf2 {[%clk 0:01:51]} 18. Rxh5 {[%clk 0:01:52]}  Rg8 {[%clk 0:01:46]} 19. Rd2 {[%clk 0:01:46]}  fxg5 {[%clk 0:01:43]} 20. Bf3 {[%clk 0:01:22]}  b5 {[%clk 0:01:42]} 21. a3 {[%clk 0:01:16]}  Bb7 {[%clk 0:01:40]} 22. Rxf2 {[%clk 0:00:58]}  Bxd4 {[%clk 0:01:38]} 23. Rf1 {[%clk 0:00:57]}  Rc8 {[%clk 0:01:36]} 24. Kd2 {[%clk 0:00:56]}  Be5 {[%clk 0:01:30]} 25. Rfh1 {[%clk 0:00:44]}  Bxg3 {[%clk 0:01:28]} 26. Rh8 {[%clk 0:00:38]}  Rxh8 {[%clk 0:01:17]} 27. Rxh8+ {[%clk 0:00:39]}  Ke7 {[%clk 0:01:18]} 28. Rh7+ {[%clk 0:00:30]}  Kd8 {[%clk 0:01:18]} 29. Ne2 {[%clk 0:00:29]}  Be5 {[%clk 0:01:17]} 30. c3 {[%clk 0:00:29]}  g4 {[%clk 0:01:15]} 31. Bxg4 {[%clk 0:00:27]}  Bxe4 {[%clk 0:01:15]} 32. Bf3 {[%clk 0:00:26]}  Bxh7 {[%clk 0:01:14]} 0-1


[Site "https://www.chess.com"]

[Event "Titled Tuesday Blitz September 21 2021"]
[White "Gabrielian, Artur"]
[Black "Sadovsky, Artem"]
[WhiteFideId "4131002"]
[BlackFideId "4155840"]
[WhiteElo "2489"]
[BlackElo "2414"]
[Result "1-0"]
[Round "01"]
[TimeControl "180+1"]
[Date "2021.09.21"]
[WhiteClock "0:01:34"]
[BlackClock "0:00:02"]

1. e4 {[%clk 0:03:00]}  g6 {[%clk 0:02:58]} 2. d4 {[%clk 0:03:00]}  Bg7 {[%clk 0:02:58]} 3. Nc3 {[%clk 0:03:01]}  c6 {[%clk 0:02:58]} 4. f4 {[%clk 0:02:59]}  d5 {[%clk 0:02:58]} 5. e5 {[%clk 0:03:00]}  h5 {[%clk 0:02:59]} 6. Nf3 {[%clk 0:02:59]}  Nh6 {[%clk 0:02:59]} 7. Bd3 {[%clk 0:02:57]}  Bf5 {[%clk 0:02:59]} 8. O-O {[%clk 0:02:56]}  Bxd3 {[%clk 0:02:59]} 9. Qxd3 {[%clk 0:02:56]}  e6 {[%clk 0:03:00]} 10. Nd1 {[%clk 0:02:55]}  Nf5 {[%clk 0:02:58]} 11. Ne3 {[%clk 0:02:54]}  Nxe3 {[%clk 0:02:55]} 12. Bxe3 {[%clk 0:02:54]}  Bf8 {[%clk 0:02:52]} 13. b3 {[%clk 0:02:54]}  Be7 {[%clk 0:02:50]} 14. c4 {[%clk 0:02:54]}  Nd7 {[%clk 0:02:44]} 15. a4 {[%clk 0:02:53]}  a6 {[%clk 0:02:33]} 16. g3 {[%clk 0:02:50]}  Rc8 {[%clk 0:02:26]} 17. Kg2 {[%clk 0:02:50]}  Nb6 {[%clk 0:01:44]} 18. c5 {[%clk 0:02:47]}  Na8 {[%clk 0:01:38]} 19. h3 {[%clk 0:02:47]}  Nc7 {[%clk 0:01:38]} 20. Bd2 {[%clk 0:02:46]}  Kd7 {[%clk 0:01:31]} 21. b4 {[%clk 0:02:45]}  Ra8 {[%clk 0:01:26]} 22. Rh1 {[%clk 0:02:42]}  Qg8 {[%clk 0:01:19]} 23. Kf2 {[%clk 0:02:41]}  Qe8 {[%clk 0:01:12]} 24. Ke2 {[%clk 0:02:41]}  Qc8 {[%clk 0:01:12]} 25. g4 {[%clk 0:02:40]}  Qg8 {[%clk 0:01:07]} 26. Qb1 {[%clk 0:02:37]}  hxg4 {[%clk 0:00:59]} 27. hxg4 {[%clk 0:02:37]}  Qg7 {[%clk 0:00:58]} 28. Qd3 {[%clk 0:02:24]}  Rxh1 {[%clk 0:00:58]} 29. Rxh1 {[%clk 0:02:24]}  Rh8 {[%clk 0:00:59]} 30. Qb1 {[%clk 0:02:24]}  Rh7 {[%clk 0:00:54]} 31. Qg1 {[%clk 0:02:16]}  Qh8 {[%clk 0:00:54]} 32. Rh2 {[%clk 0:02:16]}  Rxh2+ {[%clk 0:00:53]} 33. Qxh2 {[%clk 0:02:16]}  Qxh2+ {[%clk 0:00:54]} 34. Nxh2 {[%clk 0:02:17]}  Na8 {[%clk 0:00:42]} 35. Nf3 {[%clk 0:02:16]}  b5 {[%clk 0:00:43]} 36. a5 {[%clk 0:02:06]}  Nc7 {[%clk 0:00:43]} 37. Be1 {[%clk 0:02:06]}  Ke8 {[%clk 0:00:43]} 38. Bh4 {[%clk 0:02:06]}  Bxh4 {[%clk 0:00:43]} 39. Nxh4 {[%clk 0:02:06]}  Kf8 {[%clk 0:00:40]} 40. Kf3 {[%clk 0:02:06]}  Kg7 {[%clk 0:00:40]} 41. Kg3 {[%clk 0:02:02]}  Ne8 {[%clk 0:00:35]} 42. Nf3 {[%clk 0:02:02]}  Nc7 {[%clk 0:00:33]} 43. Kh4 {[%clk 0:02:01]}  Kh6 {[%clk 0:00:31]} 44. Ng5 {[%clk 0:01:59]}  Kg7 {[%clk 0:00:31]} 45. Nh3 {[%clk 0:02:00]}  Kh6 {[%clk 0:00:32]} 46. Nf2 {[%clk 0:01:59]}  Kg7 {[%clk 0:00:31]} 47. Kg5 {[%clk 0:01:58]}  Ne8 {[%clk 0:00:27]} 48. f5 {[%clk 0:01:55]}  gxf5 {[%clk 0:00:27]} 49. gxf5 {[%clk 0:01:55]}  exf5 {[%clk 0:00:22]} 50. Kxf5 {[%clk 0:01:54]}  Nc7 {[%clk 0:00:22]} 51. Kf4 {[%clk 0:01:39]}  Ne6+ {[%clk 0:00:23]} 52. Ke3 {[%clk 0:01:39]}  f6 {[%clk 0:00:21]} 53. exf6+ {[%clk 0:01:34]}  Kxf6 {[%clk 0:00:21]} 54. Ng4+ {[%clk 0:01:35]}  Ke7 {[%clk 0:00:15]} 55. Ne5 {[%clk 0:01:35]}  Nd8 {[%clk 0:00:14]} 56. Kf3 {[%clk 0:01:35]}  Ke6 {[%clk 0:00:14]} 57. Kf4 {[%clk 0:01:35]}  Kf6 {[%clk 0:00:13]} 58. Nd7+ {[%clk 0:01:35]}  Ke6 {[%clk 0:00:13]} 59. Nb8 {[%clk 0:01:35]}  Ke7 {[%clk 0:00:10]} 60. Kf5 {[%clk 0:01:36]}  Ne6 {[%clk 0:00:02]} 61. Nxc6+ {[%clk 0:01:34]}  Kd7 {[%clk 0:00:03]} 62. Ke5 {[%clk 0:01:34]}  Kxc6 {[%clk 0:00:02]} 63. Kxe6 {[%clk 0:01:34]} 1-0


[Site "https://www.chess.com"]

[Event "Titled Tuesday Blitz September 21 2021"]
[White "Gerasimenyuk, Mikhail"]
[Black "Madaminov, Mukhiddin"]
[WhiteFideId "14111845"]
[BlackFideId "14210703"]
[WhiteElo "2254"]
[BlackElo "1855"]
[Result "0-1"]
[Round "01"]
[TimeControl "180+1"]
[Date "2021.09.21"]
[WhiteClock "0:00:43"]
[BlackClock "0:00:19"]

1. d4 {[%clk 0:02:55]}  Nf6 {[%clk 0:03:00]} 2. Nf3 {[%clk 0:02:55]}  e6 {[%clk 0:03:01]} 3. Bg5 {[%clk 0:02:55]}  d5 {[%clk 0:03:01]} 4. e3 {[%clk 0:02:55]}  Be7 {[%clk 0:03:02]} 5. Nbd2 {[%clk 0:02:56]}  O-O {[%clk 0:03:02]} 6. Bd3 {[%clk 0:02:56]}  b6 {[%clk 0:03:03]} 7. c3 {[%clk 0:02:56]}  Bb7 {[%clk 0:03:03]} 8. h4 {[%clk 0:02:56]}  h6 {[%clk 0:03:03]} 9. Bxf6 {[%clk 0:02:55]}  Bxf6 {[%clk 0:03:03]} 10. g4 {[%clk 0:02:56]}  g6 {[%clk 0:02:54]} 11. g5 {[%clk 0:02:52]}  hxg5 {[%clk 0:02:48]} 12. h5 {[%clk 0:02:52]}  Bg7 {[%clk 0:02:49]} 13. hxg6 {[%clk 0:02:50]}  f5 {[%clk 0:02:47]} 14. Ne5 {[%clk 0:02:46]}  g4 {[%clk 0:02:46]} 15. f4 {[%clk 0:02:42]}  Nd7 {[%clk 0:02:36]} 16. Qe2 {[%clk 0:02:40]}  Nxe5 {[%clk 0:02:34]} 17. dxe5 {[%clk 0:02:41]}  d4 {[%clk 0:02:32]} 18. Qh2 {[%clk 0:02:38]}  Re8 {[%clk 0:02:26]} 19. exd4 {[%clk 0:02:35]}  Bxh1 {[%clk 0:02:26]} 20. Qxh1 {[%clk 0:02:35]}  c5 {[%clk 0:02:15]} 21. Nb3 {[%clk 0:02:28]}  Rc8 {[%clk 0:02:10]} 22. O-O-O {[%clk 0:02:23]}  c4 {[%clk 0:02:07]} 23. Bxc4 {[%clk 0:01:59]}  Rxc4 {[%clk 0:02:08]} 24. Nd2 {[%clk 0:01:58]}  Rc8 {[%clk 0:02:07]} 25. Nf1 {[%clk 0:01:57]}  Re7 {[%clk 0:01:27]} 26. Ne3 {[%clk 0:01:55]}  Qe8 {[%clk 0:01:18]} 27. Qh7+ {[%clk 0:01:49]}  Kf8 {[%clk 0:01:18]} 28. d5 {[%clk 0:01:48]}  Qa4 {[%clk 0:01:19]} 29. d6 {[%clk 0:01:17]}  Rd7 {[%clk 0:01:19]} 30. Qh2 {[%clk 0:01:13]}  Qxa2 {[%clk 0:01:16]} 31. Nc2 {[%clk 0:01:07]}  Qc4 {[%clk 0:01:03]} 32. Qf2 {[%clk 0:01:03]}  Qe4 {[%clk 0:00:57]} 33. Rh1 {[%clk 0:01:02]}  Qxh1+ {[%clk 0:00:57]} 34. Ne1 {[%clk 0:01:01]}  Qe4 {[%clk 0:00:53]} 35. Kd2 {[%clk 0:01:00]}  Bh6 {[%clk 0:00:51]} 36. Nd3 {[%clk 0:00:59]}  Kg7 {[%clk 0:00:43]} 37. Qh4 {[%clk 0:00:59]}  Bxf4+ {[%clk 0:00:43]} 38. Kc2 {[%clk 0:00:58]}  Kxg6 {[%clk 0:00:23]} 39. Qf6+ {[%clk 0:00:58]}  Kh5 {[%clk 0:00:24]} 40. Qxe6 {[%clk 0:00:57]}  Rcd8 {[%clk 0:00:20]} 41. Qf6 {[%clk 0:00:49]}  Qxd3+ {[%clk 0:00:20]} 42. Kb3 {[%clk 0:00:43]}  Qd5+ {[%clk 0:00:18]} 43. Kc2 {[%clk 0:00:43]}  Qf7 {[%clk 0:00:19]} 0-1


[Site "https://www.chess.com"]

[Event "Titled Tuesday Blitz September 21 2021"]
[White "Goltsev, Dmitry"]
[Black "Pacheco Lugo, Alejandro Jose"]
[WhiteFideId "24176710"]
[BlackFideId "3903745"]
[WhiteElo "2334"]
[BlackElo "2125"]
[Result "1-0"]
[Round "01"]
[TimeControl "180+1"]
[Date "2021.09.21"]
[WhiteClock "0:02:17"]
[BlackClock "0:02:32"]

1. e4 {[%clk 0:02:58]}  c5 {[%clk 0:02:59]} 2. Nf3 {[%clk 0:02:59]}  d6 {[%clk 0:03:00]} 3. d4 {[%clk 0:02:59]}  cxd4 {[%clk 0:03:01]} 4. Nxd4 {[%clk 0:02:57]}  Nf6 {[%clk 0:03:01]} 5. Nc3 {[%clk 0:02:56]}  a6 {[%clk 0:03:02]} 6. a4 {[%clk 0:02:55]}  e5 {[%clk 0:03:01]} 7. Nb3 {[%clk 0:02:55]}  Be6 {[%clk 0:03:02]} 8. Be2 {[%clk 0:02:55]}  Be7 {[%clk 0:03:01]} 9. O-O {[%clk 0:02:55]}  O-O {[%clk 0:03:01]} 10. Be3 {[%clk 0:02:55]}  Qc7 {[%clk 0:02:55]} 11. f4 {[%clk 0:02:54]}  Rc8 {[%clk 0:02:52]} 12. Nd2 {[%clk 0:02:50]}  Nc6 {[%clk 0:02:40]} 13. f5 {[%clk 0:02:49]}  Bd7 {[%clk 0:02:40]} 14. g4 {[%clk 0:02:49]}  h6 {[%clk 0:02:40]} 15. h4 {[%clk 0:02:49]}  Nb4 {[%clk 0:02:40]} 16. g5 {[%clk 0:02:48]}  hxg5 {[%clk 0:02:39]} 17. hxg5 {[%clk 0:02:49]}  Nh7 {[%clk 0:02:40]} 18. g6 {[%clk 0:02:40]}  fxg6 {[%clk 0:02:38]} 19. fxg6 {[%clk 0:02:41]}  Nf6 {[%clk 0:02:39]} 20. Bc4+ {[%clk 0:02:39]}  Kf8 {[%clk 0:02:35]} 21. Qh5 {[%clk 0:02:38]}  Ke8 {[%clk 0:02:34]} 22. Qh8+ {[%clk 0:02:19]}  Bf8 {[%clk 0:02:34]} 23. Rxf6 {[%clk 0:02:17]}  gxf6 {[%clk 0:02:32]} 24. g7 {[%clk 0:02:17]} 1-0


[Site "https://www.chess.com"]

[Event "Titled Tuesday Blitz September 21 2021"]
[White "Hampel, Felix"]
[Black "Hambleton, Aman"]
[WhiteFideId "24668125"]
[BlackFideId "2606577"]
[WhiteElo "2288"]
[BlackElo "2552"]
[Result "0-1"]
[Round "01"]
[TimeControl "180+1"]
[Date "2021.09.21"]
[WhiteClock "0:00:05"]
[BlackClock "0:00:07"]

1. c4 {[%clk 0:02:31]}  e5 {[%clk 0:02:59]} 2. Nc3 {[%clk 0:02:31]}  Bb4 {[%clk 0:02:57]} 3. Nd5 {[%clk 0:02:31]}  Bc5 {[%clk 0:02:53]} 4. Nf3 {[%clk 0:02:31]}  c6 {[%clk 0:02:45]} 5. b4 {[%clk 0:02:29]}  Bf8 {[%clk 0:02:39]} 6. Nc3 {[%clk 0:02:28]}  d6 {[%clk 0:02:32]} 7. d4 {[%clk 0:02:26]}  Nd7 {[%clk 0:02:29]} 8. Bb2 {[%clk 0:02:20]}  Ngf6 {[%clk 0:02:21]} 9. dxe5 {[%clk 0:02:06]}  dxe5 {[%clk 0:02:22]} 10. a3 {[%clk 0:01:58]}  e4 {[%clk 0:02:07]} 11. Ng5 {[%clk 0:01:29]}  e3 {[%clk 0:02:06]} 12. fxe3 {[%clk 0:01:29]}  a5 {[%clk 0:02:00]} 13. c5 {[%clk 0:01:25]}  axb4 {[%clk 0:01:52]} 14. axb4 {[%clk 0:01:26]}  Rxa1 {[%clk 0:01:53]} 15. Bxa1 {[%clk 0:01:26]}  Qe7 {[%clk 0:01:47]} 16. Qd4 {[%clk 0:01:20]}  b6 {[%clk 0:01:16]} 17. cxb6 {[%clk 0:00:38]}  Qxb4 {[%clk 0:01:17]} 18. g3 {[%clk 0:00:38]}  Qxb6 {[%clk 0:01:02]} 19. Qxb6 {[%clk 0:00:32]}  Nxb6 {[%clk 0:01:03]} 20. Bg2 {[%clk 0:00:33]}  Nbd5 {[%clk 0:00:49]} 21. e4 {[%clk 0:00:24]}  Ne3 {[%clk 0:00:46]} 22. Bf3 {[%clk 0:00:18]}  Nc2+ {[%clk 0:00:44]} 23. Kd2 {[%clk 0:00:18]}  Nxa1 {[%clk 0:00:43]} 24. Rxa1 {[%clk 0:00:19]}  h6 {[%clk 0:00:09]} 25. e5 {[%clk 0:00:18]}  Nd5 {[%clk 0:00:02]} 26. Nxd5 {[%clk 0:00:09]}  cxd5 {[%clk 0:00:03]} 27. Ra8 {[%clk 0:00:09]}  Bb4+ {[%clk 0:00:03]} 28. Kd1 {[%clk 0:00:08]}  O-O {[%clk 0:00:04]} 29. Ne4 {[%clk 0:00:04]}  dxe4 {[%clk 0:00:04]} 30. Bxe4 {[%clk 0:00:04]}  Be6 {[%clk 0:00:03]} 31. Ra7 {[%clk 0:00:04]}  Rd8+ {[%clk 0:00:03]} 32. Kc1 {[%clk 0:00:04]}  Bc5 {[%clk 0:00:03]} 33. Rc7 {[%clk 0:00:04]}  Be3+ {[%clk 0:00:04]} 34. Kb1 {[%clk 0:00:04]}  Bd4 {[%clk 0:00:05]} 35. Rb7 {[%clk 0:00:03]}  Bxe5 {[%clk 0:00:04]} 36. g4 {[%clk 0:00:04]}  Rb8 {[%clk 0:00:05]} 37. Rxb8+ {[%clk 0:00:04]}  Bxb8 {[%clk 0:00:06]} 38. h3 {[%clk 0:00:05]}  g6 {[%clk 0:00:06]} 39. Kc2 {[%clk 0:00:05]}  Kg7 {[%clk 0:00:06]} 40. Kd3 {[%clk 0:00:05]}  Kf6 {[%clk 0:00:07]} 0-1


[Site "https://www.chess.com"]

[Event "Titled Tuesday Blitz September 21 2021"]
[White "Ider, Borya"]
[Black "Gubanov, Oleg"]
[WhiteFideId "4901134"]
[BlackFideId "14115115"]
[WhiteElo "2512"]
[BlackElo "2128"]
[Result "1-0"]
[Round "01"]
[TimeControl "180+1"]
[Date "2021.09.21"]
[WhiteClock "0:01:56"]
[BlackClock "0:00:34"]

1. Nf3 {[%clk 0:03:00]}  b5 {[%clk 0:02:59]} 2. e3 {[%clk 0:02:55]}  a6 {[%clk 0:02:58]} 3. a4 {[%clk 0:02:52]}  b4 {[%clk 0:02:58]} 4. d4 {[%clk 0:02:51]}  Bb7 {[%clk 0:02:56]} 5. Nbd2 {[%clk 0:02:51]}  Nf6 {[%clk 0:02:55]} 6. Bd3 {[%clk 0:02:50]}  d5 {[%clk 0:02:55]} 7. a5 {[%clk 0:02:49]}  e6 {[%clk 0:02:54]} 8. c3 {[%clk 0:02:48]}  c5 {[%clk 0:02:41]} 9. cxb4 {[%clk 0:02:43]}  cxb4 {[%clk 0:02:38]} 10. Ne5 {[%clk 0:02:41]}  Bd6 {[%clk 0:02:31]} 11. f4 {[%clk 0:02:37]}  O-O {[%clk 0:02:29]} 12. O-O {[%clk 0:02:36]}  Nc6 {[%clk 0:02:28]} 13. Qa4 {[%clk 0:02:36]}  Rc8 {[%clk 0:02:10]} 14. Nb3 {[%clk 0:02:33]}  Ne4 {[%clk 0:02:02]} 15. Bd2 {[%clk 0:02:33]}  f6 {[%clk 0:01:59]} 16. Nxc6 {[%clk 0:02:29]}  Bxc6 {[%clk 0:01:58]} 17. Qa2 {[%clk 0:02:29]}  Bb7 {[%clk 0:01:40]} 18. Qa4 {[%clk 0:02:28]}  Bc6 {[%clk 0:01:39]} 19. Qa2 {[%clk 0:02:28]}  Bb7 {[%clk 0:01:39]} 20. Rfc1 {[%clk 0:02:28]}  Qd7 {[%clk 0:01:38]} 21. Be1 {[%clk 0:02:22]}  Rxc1 {[%clk 0:01:28]} 22. Rxc1 {[%clk 0:02:21]}  Rc8 {[%clk 0:01:29]} 23. Qb1 {[%clk 0:02:18]}  Rxc1 {[%clk 0:01:24]} 24. Qxc1 {[%clk 0:02:17]}  Qc7 {[%clk 0:01:24]} 25. Qxc7 {[%clk 0:02:17]}  Bxc7 {[%clk 0:01:25]} 26. Bxb4 {[%clk 0:02:17]}  Kf7 {[%clk 0:01:17]} 27. Nc5 {[%clk 0:02:16]}  Nxc5 {[%clk 0:01:14]} 28. dxc5 {[%clk 0:02:17]}  Ke8 {[%clk 0:01:12]} 29. Bc3 {[%clk 0:02:16]}  h6 {[%clk 0:01:04]} 30. b4 {[%clk 0:02:15]}  Kd7 {[%clk 0:01:03]} 31. Kf2 {[%clk 0:02:14]}  Kc6 {[%clk 0:01:03]} 32. h4 {[%clk 0:02:10]}  e5 {[%clk 0:01:04]} 33. fxe5 {[%clk 0:02:08]}  fxe5 {[%clk 0:01:04]} 34. Be2 {[%clk 0:02:03]}  Bc8 {[%clk 0:01:04]} 35. Kf3 {[%clk 0:02:02]}  g5 {[%clk 0:01:02]} 36. hxg5 {[%clk 0:02:02]}  hxg5 {[%clk 0:01:03]} 37. Kf2 {[%clk 0:02:02]}  Bb8 {[%clk 0:00:58]} 38. Ke1 {[%clk 0:02:01]}  Bc7 {[%clk 0:00:57]} 39. Kd2 {[%clk 0:02:01]}  Bb8 {[%clk 0:00:56]} 40. Kc2 {[%clk 0:02:02]}  Bc7 {[%clk 0:00:50]} 41. Kb3 {[%clk 0:02:02]}  Kb7 {[%clk 0:00:36]} 42. Ka4 {[%clk 0:01:59]}  Bd7+ {[%clk 0:00:36]} 43. b5 {[%clk 0:02:00]}  axb5+ {[%clk 0:00:36]} 44. Bxb5 {[%clk 0:02:01]}  Bf5 {[%clk 0:00:36]} 45. c6+ {[%clk 0:01:58]}  Ka7 {[%clk 0:00:35]} 46. Bb4 {[%clk 0:01:58]}  Be4 {[%clk 0:00:35]} 47. Bc5+ {[%clk 0:01:57]}  Kb8 {[%clk 0:00:35]} 48. a6 {[%clk 0:01:57]}  Bxg2 {[%clk 0:00:34]} 49. a7+ {[%clk 0:01:56]}  Ka8 {[%clk 0:00:34]} 50. Ba6 {[%clk 0:01:56]} 1-0


[Site "https://www.chess.com"]